Cogmind - Beta 11.1 @@@ ROGUE MODE // 2022.08.09 @ 03:37:24 Player: John_Oxford Result: Destroyed by Y-45 Defender with Beam Rifle Performance ------------- Evolutions (2) 1000 Regions Visited (5) 1000 Robots Destroyed (37) 185 Value Destroyed (1262) 1262 Prototype IDs (2) 40 Alien Tech Used (0) 0 Bonus (0) 0 TOTAL SCORE: 3487 Bonus ------- None Cogmind --------- Core Integrity 0/550 Matter 247/300 Energy 299/300 System Corruption 5% Temperature Cool (9) Movement Core (100) Ox1 Location -8/Storage Parts ------- > --- POWER (1) -------- Enhanced Nuclear Core > --- PROPULSION (4) --- (None) > --- UTILITY (4) ------ Small Storage Unit Advanced Weight Redist. System Targeting Computer > --- WEAPON (2) ------- (None) > --- INVENTORY (8) ---- Enhanced Nuclear Core Heat Sink Compact Matter Pod (150) Weight Redist. System Hardened Light Armor Plating Peak State ------------ > --- POWER ------------ Enhanced Nuclear Core > --- PROPULSION ------- (None) > --- UTILITY ---------- Small Storage Unit Advanced Weight Redist. System Targeting Computer Hacking Suite > --- WEAPON ----------- Guided EMP Blaster > --- INVENTORY -------- Enhanced Nuclear Core Enhanced Nuclear Core Heat Sink Compact Matter Pod Weight Redist. System Hardened Light Armor Plating [Rating: 26] Favorites ----------- Power Ion Engine Engine Ion Engine Power Core Enhanced Nuclear Core Propulsion Light Treads Treads Light Treads Leg Aluminum Leg Flight Unit Flight Unit Utility Targeting Computer Device Advanced Weight Redist. System Storage Small Storage Unit Processor Targeting Computer Hackware Hacking Suite Weapon Light Assault Rifle Energy Gun Particle Gun Ballistic Gun Light Assault Rifle Ballistic Cannon Gauss Cannon Launcher Grenade Launcher Build | -11 -10 -10 -9 -8 -8 ------- Run | Scr Mat Min Mat Mat Sto Slots Evolved 4 | . . . 2 2 . Power . | . . . . . . Propulsion 2 | . . . 2 . . Utility 2 | . . . . 2 . Weapon . | . . . . . . Parts Attached 42 | 7 . 1 10 20 4 Power 7 | 2 . . 2 2 1 Engine 4 | 2 . . 2 . . Core 3 | . . . . 2 1 Reactor . | . . . . . . Propulsion 13 | 2 . . 4 7 . Treads 6 | . . . 4 2 . Leg 3 | 2 . . . 1 . Wheel . | . . . . . . Hover . | . . . . . . Flight 4 | . . . . 4 . Utility 7 | 1 . 1 1 4 . Device 2 | . . . . 2 . Storage 3 | 1 . . 1 1 . Processor 1 | . . 1 . . . Hackware 1 | . . . . 1 . Protection . | . . . . . . Artifact . | . . . . . . Weapon 15 | 2 . . 3 7 3 Energy Gun 1 | . . . . 1 . Energy Cannon . | . . . . . . Ballistic Gun 5 | 2 . . 2 1 . Ballistic Cannon 3 | . . . . 2 1 Launcher 6 | . . . 1 3 2 Special Weapon . | . . . . . . Impact Weapon . | . . . . . . Slashing Weapon . | . . . . . . Piercing Weapon . | . . . . . . Special Melee Weapon . | . . . . . . Unidentified Prototypes 2 | . . . . 1 1 Parts Lost 17 | . . . 2 9 6 Power 3 | . . . 1 1 1 Propulsion 6 | . . . . 5 1 Utility 1 | . . . . . 1 Weapon 7 | . . . 1 3 3 Highest Loss Streak 5 | . . . 1 5 4 To Critical Strikes . | . . . . . . Average Slot Usage (%) 79 | . 85 92 97 64 54 Engine 6 | . 14 14 10 . . Core 3 | . . . . 6 9 Treads 18 | . . . 39 9 . Leg 5 | . 28 28 2 . . Flight 3 | . . . . 7 3 Device 1 | . . . . 1 9 Storage 10 | . 14 14 11 9 9 Processor 8 | . . 7 11 9 9 Hackware 3 | . . . . 8 5 Ballistic Gun 14 | . 28 28 18 7 . Launcher 2 | . . . 3 . 5 Naked Turns . | . . . . . . Heaviest Build 29 | 13 13 13 29 29 23 Greatest Support 80 | 20 20 20 80 80 14 Greatest Overweight (x) 4 | 4 . . . 4 1 Average Overweight (x) . | 2 . . . . 1 Largest Inventory Capacity 15 | 8 8 8 15 15 8 Average Capacity 11 | 7 8 8 14 11 8 Most Carried 15 | 6 7 8 9 15 8 Average Carried 6 | 4 6 7 6 8 5 Final Capacity 15 | 8 8 8 15 8 8 Final Carried 8 | 4 7 8 6 7 5 Class Distribution -------------------- 95% | Mutant 4% | Scavenger-Mutant Dominant Class ---------------- Mutant | -10/Materials Mutant | -10/Mines Mutant | -9/Materials Mutant | -8/Materials Mutant | -8/Storage Resources | -11 -10 -10 -9 -8 -8 ----------- Run | Scr Mat Min Mat Mat Sto Matter Collected 1070 | 226 123 23 284 328 86 Remotely . | . . . . . . Salvage Created 1444 | 92 148 . 373 640 191 Parts 94 | 2 11 . 25 46 10 Haulers Intercepted . | . . . . . . Recyclers Shooed 2 | . . . . 1 1 Parts Field Recycled . | . . . . . . Retrieved Matter . | . . . . . . Parts Self-Destructed . | . . . . . . Prevented . | . . . . . . Kills | -11 -10 -10 -9 -8 -8 ------- Run | Scr Mat Min Mat Mat Sto Combat Hostiles Destroyed 32 | . 3 . 9 17 3 Guns 20 | . 3 . 8 9 . Cannons 3 | . . . . 3 . AOE 9 | . . . 1 5 3 Classes Destroyed 9 | 1 2 . 1 3 2 Worker 1 | . . . . 1 . Builder 1 | . . . . 1 . Recycler 1 | 1 . . . . . Operator 1 | . . . . . 1 Watcher 1 | . 1 . . . . Swarmer 6 | . . . . 6 . Grunt 20 | . 3 . 7 8 2 Duelist 1 | . . . . . 1 Sentry 5 | . . . 2 3 . Best Kill Streak 5 | 1 3 . 3 5 3 Combat Bots Only 4 | . 2 . 3 4 3 Max Kills in Single Turn 1 | 1 1 . 1 1 1 Gunslinging . | . . . . . . Exploded 1 | . . . 1 1 1 Melee . | . . . . . . Uniques/NPCs Destroyed . | . . . . . . Combat | -11 -10 -10 -9 -8 -8 -------- Run | Scr Mat Min Mat Mat Sto Damage Taken 2804 | . 261 . 543 1231 769 Core 613 | . 32 . 23 307 251 Absorbed by Shields . | . . . . . . Core Remaining (%) 93 | 100 . 87 94 . . Volleys Fired 142 | 7 18 . 41 70 6 Largest 2 | 2 2 . 2 2 2 Hottest 98 | 40 40 . 53 98 77 Shots Fired 221 | 14 36 . 73 91 7 Gun 187 | 14 36 . 68 69 . Cannon 13 | . . . . 12 1 Launcher 21 | . . . 5 10 6 Special . | . . . . . . Kinetic 191 | 14 36 . 68 72 1 Thermal 9 | . . . . 9 . Explosive 5 | . . . 5 . . Electromagnetic 16 | . . . . 10 6 Robot Hit Streak 13 | 5 8 . 8 13 6 Robot Miss Streak 6 | 2 5 . 2 6 1 Penetration Max . | . . . . . . Secondary Targets 1 | . 1 . . . . Max Gunslinging Chain 1 | . 1 . . . . Shots Hit Robots 148 | 9 20 . 49 64 6 Core Hits 74 | 3 8 . 19 35 9 Critical Kills 2 | . . . . 2 . Critical Parts Destroyed . | . . . . . . Critical Strikes 4 | . . . . 4 . Destroy 2 | . . . . 2 . Blast 2 | . . . . 2 . Melee Attacks . | . . . . . . Impact . | . . . . . . Slashing . | . . . . . . Piercing . | . . . . . . Sneak Attacks . | . . . . . . Combat Hostiles . | . . . . . . Follow-up Attacks . | . . . . . . Damage Inflicted 2668 | 94 214 . 744 1124 492 Guns 1539 | 94 214 . 632 599 . Cannons 192 | . . . . 164 28 Explosions 925 | . . . 103 358 464 Melee . | . . . . . . Ramming 12 | . . . 9 3 . Kinetic 1620 | 94 214 . 632 652 28 Thermal 207 | . . . . 148 59 Explosive 103 | . . . 103 . . Electromagnetic 726 | . . . . 321 405 Impact . | . . . . . . Slashing . | . . . . . . Piercing . | . . . . . . Highest Corruption 5 | . 2 2 . 2 5 Average Corruption 1 | . 1 2 . 1 2 Corruption Purged . | . . . . . . Corruption Blocked . | . . . . . . Effects 9 | . . . . 7 2 Message Errors 2 | . . . . 1 1 Matter Fused 2 | . . . . 1 1 Heat Flow Errors 2 | . . . . 2 . Energy Discharges 1 | . . . . 1 . Parts Rejected 1 | . . . . 1 . Alerts 1 | . . . . 1 . Overload Shots . | . . . . . . Overflow Damage 10 | . . . . 6 4 Projectiles 6 | . . . . 6 . Explosions 4 | . . . . . 4 Melee . | . . . . . . Knockbacks 2 | . . . . 2 . Impact . | . . . . . . Kinetic 2 | . . . . 2 . Secondary . | . . . . . . Self-Inflicted Damage 72 | . . . 22 36 14 Shots 4 | . . . 1 2 1 Rammed 3 | . . . 1 2 . Targets Rammed 3 | . . . 1 2 . Kicked . | . . . . . . Crushed . | . . . . . . Highest Temperature 290 | . 18 . 7 290 40 Average Temperature 58 | . 7 . 4 90 13 Received Heat Transfer 1443 | . 150 . 294 558 441 Siege Activations . | . . . . . . Robots Corrupted . | . . . . . . Combat Hostiles . | . . . . . . Parts Fried . | . . . . . . Impact Corruptions . | . . . . . . Robots Melted . | . . . . . . Combat Hostiles . | . . . . . . Parts Melted . | . . . . . . Heat Transferred 409 | . . . . 309 100 Parts Sabotaged . | . . . . . . Parts Stolen . | . . . . . . Parts Stripped . | . . . . . . Power Chain Reactions 5 | . . . . 3 2 Missiles Intercepted . | . . . . . . Alert | -11 -10 -10 -9 -8 -8 ------- Run | Scr Mat Min Mat Mat Sto Peak Influence 372 | 5 95 36 248 372 266 Initial 156 | . 3 36 13 66 156 Average 119 | 1 29 36 111 163 216 Maximum Alert Level 1 | . . . 1 1 1 Low Security (%) 74 | 100 100 100 77 64 41 Level 1 25 | . . . 22 35 58 Level 2 . | . . . . . . Level 3 . | . . . . . . Level 4 . | . . . . . . Level 5 . | . . . . . . High Security . | . . . . . . Max Security . | . . . . . . Squads Dispatched 7 | . . . 2 3 2 Investigation 4 | . . . 2 1 1 Extermination . | . . . . . . Reinforcement 3 | . . . . 2 1 Assault . | . . . . . . Garrison . | . . . . . . Intercept . | . . . . . . Searches Triggered . | . . . . . . Construction Impeded . | . . . . . . Haulers Reinforced . | . . . . . . Active Scanning Responses . | . . . . . . Cargo Convoy Interrupts . | . . . . . . Stealth | -11 -10 -10 -9 -8 -8 --------- Run | Scr Mat Min Mat Mat Sto Distress Signals 5 | . 1 . 1 3 . Communications Jammed . | . . . . . . Distress Signals . | . . . . . . Times Spotted 57 | . 8 . 13 24 12 Peak Tracking Total 7 | . 4 . 3 7 5 Tactical Retreats 3 | . . . . 1 2 Traps | -11 -10 -10 -9 -8 -8 ------- Run | Scr Mat Min Mat Mat Sto Traps Triggered 6 | . 2 . . 1 3 Indirectly . | . . . . . . Trap Hack Attempts . | . . . . . . Triggered . | . . . . . . Disarmed . | . . . . . . Reprogrammed . | . . . . . . Reused . | . . . . . . Traps Extracted . | . . . . . . Installed . | . . . . . . Triggered . | . . . . . . Machines | -11 -10 -10 -9 -8 -8 ---------- Run | Scr Mat Min Mat Mat Sto Machines Disabled 5 | . . . 1 2 2 Max in Single Turn 2 | . . . 1 2 1 Machines Sabotaged . | . . . . . . Garrisons Compromised . | . . . . . . Overloaded Fab Kills . | . . . . . . Hacking | -11 -10 -10 -9 -8 -8 --------- Run | Scr Mat Min Mat Mat Sto Machines Accessed 7 | . 2 . 2 2 1 Terminals 7 | . 2 . 2 2 1 Fabricators . | . . . . . . Repair Stations . | . . . . . . Recycling Units . | . . . . . . Scanalyzers . | . . . . . . Garrison Access . | . . . . . . Total Hacks 17 | . 7 . 5 3 2 Successful 1 | . . . . 1 . Failed 16 | . 7 . 5 2 2 Catastrophic 6 | . 2 . 2 1 1 Database Lockouts . | . . . . . . Manual 14 | . 6 . 5 3 . Terminals 17 | . 7 . 5 3 2 Fabricators . | . . . . . . Repair Stations . | . . . . . . Recycling Units . | . . . . . . Scanalyzers . | . . . . . . Garrison Access . | . . . . . . Terminal Hacks 1 | . . . . 1 . Level Access Points 1 | . . . . 1 . Fabricator Hacks . | . . . . . . Repair Station Hacks . | . . . . . . Recycling Unit Hacks . | . . . . . . Scanalyzer . | . . . . . . Garrison Access Hacks . | . . . . . . Unauthorized Hacks . | . . . . . . Terminals . | . . . . . . Fabricators . | . . . . . . Repair Stations . | . . . . . . Recycling Units . | . . . . . . Scanalyzers . | . . . . . . Garrison Access . | . . . . . . Data Cores Recovered . | . . . . . . Used . | . . . . . . Hacking Detections 6 | . 2 . 2 1 1 Full Trace Events 5 | . 1 . 2 1 1 Feedback Events 1 | . . . . 1 . Corruption 1 | . . . . 1 . Feedback Blocked . | . . . . . . Robot Schematics Acquired . | . . . . . . Robots Built . | . . . . . . Authchips . | . . . . . . Time . | . . . . . . Total Robot Build Rating . | . . . . . . Part Schematics Acquired . | . . . . . . Parts Built . | . . . . . . Authchips . | . . . . . . Time . | . . . . . . Total Part Build Rating . | . . . . . . Parts Repaired . | . . . . . . Time . | . . . . . . Parts Recycled . | . . . . . . Recycled Matter . | . . . . . . Retrieved Matter . | . . . . . . Retrieved Components . | . . . . . . Parts Scanalyzed . | . . . . . . Part Schematics Acquired . | . . . . . . Parts Damaged . | . . . . . . Bothacking | -11 -10 -10 -9 -8 -8 ------------ Run | Scr Mat Min Mat Mat Sto Used RIF Installer . | . . . . . . Robots Hacked . | . . . . . . Non-combat . | . . . . . . Combat . | . . . . . . Robot Hacks Applied . | . . . . . . Relay Couplers Released . | . . . . . . Fabnet Peak Effective % . | . . . . . . Robots Rewired . | . . . . . . Allies Hacked . | . . . . . . Hacks Repelled . | . . . . . . Allies | -11 -10 -10 -9 -8 -8 -------- Run | Scr Mat Min Mat Mat Sto Total Allies . | . . . . . . Largest Group . | . . . . . . Highest-Rated Group . | . . . . . . Highest-Rated Ally . | . . . . . . Total Orders . | . . . . . . Ally Attacks . | . . . . . . Total Damage . | . . . . . . Kills . | . . . . . . Allies Corrupted . | . . . . . . Allies Melted . | . . . . . . Intel | -11 -10 -10 -9 -8 -8 ------- Run | Scr Mat Min Mat Mat Sto Robot Analysis Total . | . . . . . . Derelict Logs Recovered . | . . . . . . Drone Launches . | . . . . . . Drone Recoveries . | . . . . . . Exploration | -11 -10 -10 -9 -8 -8 ------------- Run | Scr Mat Min Mat Mat Sto Turns Passed 2066 | 131 206 98 709 782 140 Spaces Moved 1071 | 56 126 77 362 349 101 Core 114 | 50 . . . . 64 Treads 419 | . . . 318 101 . Legs 257 | 6 126 77 44 4 . Wheels . | . . . . . . Hover . | . . . . . . Flight 281 | . . . . 244 37 Fastest Speed 34 | 50 120 120 120 34 100 Average Speed 142 | 171 120 120 155 149 105 Slowest Speed 360 | 250 120 120 160 360 115 Overloaded Moves . | . . . . . . Propulsion Burnouts . | . . . . . . Robots Hopped . | . . . . . . Cave-ins Triggered . | . . . . . . Exploration Rate (%) 22 | 4 25 30 28 24 22 Regions Visited 5 Branch Regions 2 Pre-discovered Areas . | . . . . . . Known Exits Taken . | . . . . . . Unknown Exits Taken 5 | 1 1 1 1 1 . Scrap Searched 1 | . . 1 . . . Spaces Dug . | . . . . . . Terrain Destroyed 55 | . . . 33 17 5 Melee . | . . . . . . Projectile 8 | . . . . 8 . AOE 47 | . . . 33 9 5 Terrain Rammed . | . . . . . . Walls Destroyed . | . . . . . . Machines Disabled . | . . . . . . Actions | -11 -10 -10 -9 -8 -8 --------- Run | Scr Mat Min Mat Mat Sto Total 1404 | 77 148 82 442 527 128 Wait 96 | . 2 4 21 55 14 Move 1066 | 55 125 76 361 348 101 Hop . | . . . . . . Pick Up 37 | 7 3 1 4 20 2 Fast Attach 12 | 3 . 1 1 7 . Attach 23 | 3 . . 6 10 4 Detach 2 | . . . . 2 . Swap 7 | 1 . . 3 3 . Drop 16 | 1 . . 4 10 1 Fire 142 | 7 18 . 41 70 6 Melee . | . . . . . . Ram 2 | . . . . 2 . Kick . | . . . . . . Crush 1 | . . . 1 . . Escape Stasis . | . . . . . . Rewire . | . . . . . . Trap . | . . . . . . Miscellaneous . | . . . . . . Route ------- -11/Scrapyard -10/Materials -10/Mines -9/Materials -8/Materials (discovered 4 exits: Fac x3 / *Sto) -8/Storage History --------- Turn | Location | Event 7 | -11/Scrapyard | Discovered new exit (range 14) 132 | -11/Scrapyard | Entered Materials 317 | -10/Materials | Build established: Mutant 331 | -10/Materials | Discovered new exit (range 7) 338 | -10/Materials | Entered Mines 411 | -10/Mines | Discovered new exit (range 15) 436 | -10/Mines | Entered Materials 436 | -9/Materials | Evolved 2 slots: Propulsion x2 1104 | -9/Materials | Discovered new exit (range 13) 1145 | -9/Materials | Entered another Materials area 1145 | -8/Materials | Evolved 2 slots: Utility x2 1342 | -8/Materials | Lost 5 parts (3n2w) 1637 | -8/Materials | Identified exit to Factory 1719 | -8/Materials | Core integrity fell below 50% 1914 | -8/Materials | Discovered new exit (range 9) 1927 | -8/Materials | Entered Storage 2043 | -8/Storage | Lost 4 parts (1p1n1u1w) 2060 | -8/Storage | Core integrity fell below 20% 2067 | -8/Storage | Destroyed by Y-45 Defender with Beam Rifle Last Messages --------------- 02015_ U-05 Engineer lays Concrete. 02016_ Critical hit (Burn: +37). 02016_ U-05 Engineer builds a Wall. 02018_ R-06 Scavenger collects Corrupted Katana. 02020_ U-05 Engineer lays Concrete. 02023_ Acquired 86 matter. 02023_ U-05 Engineer lays Concrete. 02048_ Triggered Shock Trap. 02048_ The floor emits a surge of raw power. 02048_ System corrupted (+2). 02048_ Critical hit (Burn: +37). 02049_ Triggered Shock Trap. 02049_ The floor emits a surge of raw power. 02049_ System corrupted (+1). 02052_ Gui. EMP Blaster destroyed. 02059_ Connecting with Door Terminal... 02059_ Current location identified: Storage 02059_ ALERT: Suspicious activity at Terminal S006. Dispatching Investigation squad. 02062_ U-05 Engineer builds a Door. Map ----- +----------------------------------------------------+ | ???????????????????????????????????? | | ???????????????????????????????????? | | ???????????????????????????????????? | | ???????????????????????????????????? | | ???????????????????????????????????? | | ???????????????????????????????????? | | ???????????????????????????????????? | | ???????????????????????????????????? | | ???????????????????????????????????? | | ???????????????????????????????????? | | ???????????????????????????????????? | | ???????????????????????????????????? | | ???????????????????????????????????? | | ???????????????????????????????????? | | ??????#????????????????????????????? | | ??????# ????????????#??????????????? | | ??????# ??????????? #??????????????? | | ??????# ?????????? ???????????????? | | ??????+ ????????? ???????????????? | | ??????# ??#?????? ????????????????? | | ??????# ?# """"" ????????????????? | | ??????# ?? ?????????????????? | | ?????## #??? ?????????????????? | | ?????# #####+###############???? | | ?????# u k #???? | | ?????# @Y g g #???? | | ?????# g Y #???# | | ?????# #####+########### #???# | | ?????######??# ##?#### ?# #???# | | ?????????????# T#?# ?# #???# | | ?????????????##"""##?#""" # #???# | | ?????????????????????#""" # #???# | | ?????????????????????#""" + #???# | | ?????????????????????# # ##### | | ?????????????????????# # " | | ?????????????????????# "Y"?# ##### | | ?????????????????????# """?+ #???# | | ?????????????????????####??##+##???# | | ??????????????????????????????????## | | ??????????????????????????????????# | | ??????????????????????????????????# | | ??????????????????????????????????# | | ??????????????????????????????????# | | ??????????????????????????????????# | | ??????????????????????????????????## | | ???????????????????????????????????? | | ???????????????????????????????????? | | ???????????????????????????????????? | | ???????????????????????????????????? | | ???????????????????????????????????? | +----------------------------------------------------+ Best States ------------- Heat Dissipation 31 Energy Generation 17 Energy Capacity 300 Matter Stores 300 Matter Capacity 300 Sight Range 16 Terrain Scan Density 10 Additional Mass Support 9 Evasion (%) 63 Targeting Accuracy 5 Recoil Reduction 4 Offensive Hacking 10 Item Schematics ----------------- None Robot Schematics ------------------ None Fabricated ------------ Nothing Alien Tech Used ----------------- None Achievements -------------- None Challenges ------------ None Game ------ Seed DeuteriumDimensionalRipper Manual? 0 Play Time 00:18:50 Cumulative 13.0 hours Start 2022.08.08 @ 23:16:08 End 2022.08.09 @ 03:37:24 Sessions 2 Manual Loads 0 Difficulty Rogue Special Mode None Game No. 36 Rogue 36 Adventurer 0 Explorer 0 Win Type - Total 0 Types 0/0/0/0/0/0/0/0/0 Lore% 11 Gallery% 21 Achievement% 19 Wizard Run 0 Options --------- ASCII 0 Keyboard 0 Movement Arrows Keybinds 0 Fullscreen 1 Font 24/Smallcaps Map View 76x50 Tactical HUD 1 Map Filters NONE Filters NONE Steam 1 RUN: a5e31d6c-7ce4-4c1e-81b8-b7d292cc5eab